Cogmind - Beta 15 @@@ ROGUE MODE // 2025.08.16 @ 18:32:45 Player: Plexion Result: Destroyed by as-38594 with Assembled P-sword Performance ------------- Evolutions (4) 2000 Regions Visited (13) 2600 Robots Destroyed (141) 705 Value Destroyed (4741) 4741 Prototype IDs (28) 560 Alien Tech Used (0) 0 Bonus (1741) 1741 TOTAL SCORE: 12347 Bonus ------- Follower Combat Kills 402 Registered with UFD 300 Met Optimus in HQ 500 Met Imprinter 300 Destroyed Z-Imprinter 1000 Triggered Deep Caves Wall 500 Friendly Fire -1261 Cogmind --------- Core Integrity 0/850 Matter 12/300 Energy 100/100 System Corruption 3% Temperature Cool (0) Movement Core (450) Ox8 Location -6/Deep Caves Parts ------- > --- POWER (1) -------- Zionite Light DM Reactor > --- PROPULSION (5) --- (None) > --- UTILITY (7) ------ Experimental Heat Sink Enhanced Optical Array > --- WEAPON (2) ------- Mass Driver Missile Launcher > --- INVENTORY (5) ---- Fission Core Zionite Light DM Reactor Improved Flight Unit Zionite Biocell (600) Hacking Suite Peak State ------------ > --- POWER ------------ Fission Core > --- PROPULSION ------- Zionite Composite Leg I Enhanced Flexi-carbon Leg Assembled Alloy Leg Assembled Alloy Leg > --- UTILITY ---------- High-capacity Storage Unit Assembled Biocell Array Advanced Signal Interpreter Targeting Computer Improved Shield Generator GOLEM Unit > --- WEAPON ----------- Assembled Focal Cannon RU-N14's Throwing Claymores > --- INVENTORY -------- Light Angular Momentum Engine Fission Core Fusion Compressor Improved Flight Unit Improved Flight Unit Improved Flight Unit Zionite Biocell Hacking Suite A0-MCA's Component Scanner Tech Extrapolator Mapping Drone Bay Zionite Phaser-S Proton Cannon Neutron Cannon Antimatter Cannon Companion Sword [Rating: 95] Favorites ----------- Power Light Angular Momentum Engine Engine Light Angular Momentum Engine Power Core Fission Core Reactor Zionite Light DM Reactor Propulsion Light Treads Treads Light Treads Leg Enhanced Flexi-carbon Leg Wheel Compact Wheel Hover Unit Zionite Glidesys I Flight Unit Improved Flight Unit Utility High-capacity Storage Unit Device Seismic Detector Storage High-capacity Storage Unit Processor Targeting Computer Hackware Hacking Suite Protection Makeshift Light Armor Plating Weapon Enhanced Autogun Energy Gun Zionite Phaser-S Energy Cannon Proton Cannon Ballistic Gun Enhanced Autogun Ballistic Cannon Light Cannon Launcher Missile Launcher Special Weapon RU-N14's Throwing Claymores Impact Weapon Flail Slashing Weapon Companion Sword Build | -11 -10 -10 -10 -9 -8 -8 -8 -8 -6 -6 -6 -6 -6 ------- Run | Yrd Mat Min Exi Min Mat Sto Rec Scr Fac Low Low Zio Dee Slots Evolved 8 | . . . . . 4 . . . 4 . . . . Power . | . . . . . . . . . . . . . . Propulsion 3 | . . . . . 2 . . . 1 . . . . Utility 5 | . . . . . 2 . . . 3 . . . . Weapon . | . . . . . . . . . . . . . . Parts Attached 123 | 7 6 1 1 7 33 14 . 10 9 3 2 1 29 Power 11 | 1 . 1 . 1 2 . . 1 2 . . . 3 Engine 8 | 1 . 1 . 1 2 . . 1 2 . . . . Core 2 | . . . . . . . . . . . . . 2 Reactor 1 | . . . . . . . . . . . . . 1 Propulsion 42 | 2 . . . 2 14 9 . 4 . 1 1 . 9 Treads 27 | 2 . . . 2 12 8 . 2 . . 1 . . Leg 2 | . . . . . . . . . . . . . 2 Wheel 3 | . . . . . 2 . . . . 1 . . . Hover 5 | . . . . . . . . . . . . . 5 Flight 5 | . . . . . . 1 . 2 . . . . 2 Utility 36 | 2 2 . 1 . 7 2 . 3 5 1 1 . 12 Device 9 | 1 . . . . 1 1 . . 2 1 1 . 2 Storage 5 | 1 2 . 1 . . . . . . . . . 1 Processor 4 | . . . . . 2 . . . 1 . . . 1 Hackware 1 | . . . . . . . . . 1 . . . . Protection 17 | . . . . . 4 1 . 3 1 . . . 8 Artifact . | . . . . . . . . . . . . . . Weapon 34 | 2 4 . . 4 10 3 . 2 2 1 . 1 5 Energy Gun 1 | . . . . . . . . . . . . . 1 Energy Cannon 2 | . . . . . . . . . . . . . 2 Ballistic Gun 14 | 2 . . . 1 6 3 . 1 1 . . . . Ballistic Cannon 6 | . 2 . . 1 1 . . . 1 . . . 1 Launcher 4 | . . . . 2 1 . . . . 1 . . . Special Weapon 2 | . . . . . . . . . . . . 1 1 Impact Weapon 2 | . 2 . . . . . . . . . . . . Slashing Weapon 3 | . . . . . 2 . . 1 . . . . . Piercing Weapon . | . . . . . . . . . . . . . . Special Melee Weapon . | . . . . . . . . . . . . . . Unidentified Prototypes 17 | . . . . . . 3 . 1 1 . . 1 11 Parts Lost 46 | . . . . 6 9 2 . . . 5 2 . 22 Power 5 | . . . . 1 . . . . . 1 . . 3 Propulsion 21 | . . . . 2 4 2 . . . 3 2 . 8 Utility 15 | . . . . . 3 . . . . 1 . . 11 Weapon 5 | . . . . 3 2 . . . . . . . . Highest Loss Streak 10 | . . . . 6 3 1 . . . 5 1 . 10 To Critical Strikes . | . . . . . . . . . . . . . . Average Backups 16 | 3 7 12 14 12 15 19 19 18 18 18 19 20 16 Power 1 | . 1 1 1 . . 1 1 . 2 1 2 2 2 Propulsion 3 | 1 2 3 4 2 2 6 6 5 4 3 3 3 2 Utility 4 | . . . . 1 1 3 5 6 6 7 8 7 6 Weapon 6 | . 3 7 9 8 10 7 7 5 5 6 6 7 4 Tool/Special . | . . . . . . . . . . . . . . Unused Backups 20 | . 1 . . . 2 3 . 1 1 . . 1 11 Power 3 | . . . . . . . . . . . . . 3 Propulsion 1 | . . . . . 1 . . . . . . . . Utility 12 | . . . . . . 2 . 1 1 . . . 8 Weapon 4 | . 1 . . . 1 1 . . . . . 1 . Tool/Special . | . . . . . . . . . . . . . . Average Slot Usage (%) 90 | . 93 98 100 99 91 92 87 86 99 90 90 86 75 Engine 8 | . 14 14 14 13 9 9 9 8 6 5 6 6 3 Treads 26 | . 27 28 28 27 29 35 36 34 33 20 22 20 8 Leg 1 | . . . . . . . . . . . . . 10 Device 9 | . 8 12 14 14 6 2 . 1 13 15 19 20 10 Storage 9 | . 14 14 14 14 9 9 9 8 6 6 6 6 6 Processor 6 | . . . . . 2 9 9 9 9 13 13 13 11 Protection 6 | . . . . . 11 9 9 8 11 9 6 6 7 Ballistic Gun 10 | . 16 . . 20 15 15 13 8 9 12 7 7 . Ballistic Cannon 4 | . 10 28 28 7 1 . . . . . . . 1 Slashing Weapon 2 | . . . . . 1 1 2 7 3 . 4 5 3 Peak Build Rating 95 | 7 9 8 8 10 29 33 32 38 59 57 62 59 95 Average Rating 33 | 5 7 7 8 8 21 30 30 31 56 51 58 58 64 On Entrance 27 | . 7 7 8 8 9 28 31 27 35 57 51 58 59 Naked Turns 1 | . . . . . . . . . . . . . 1 Heaviest Build 79 | 15 32 32 52 52 64 72 71 71 75 79 72 68 74 Greatest Support 112 | 40 40 40 40 40 86 84 82 82 102 102 90 68 112 Greatest Overweight (x) 8 | . . . 1 1 5 . . 2 . 4 4 . 8 Average Overweight (x) . | . . . . 1 . . . . . 2 . . . Largest Inventory Capacity 20 | 8 15 15 20 20 20 20 20 20 20 20 20 20 20 Average Capacity 18 | 7 11 15 18 20 20 20 20 19 20 20 20 20 18 Most Carried 20 | 4 12 14 15 17 20 20 20 20 20 20 20 20 20 Average Carried 16 | 3 7 12 14 15 17 19 19 18 18 18 19 19 16 Final Capacity 20 | 8 15 15 20 20 20 20 20 20 20 20 20 20 5 Final Carried 20 | 4 12 14 15 17 20 20 20 20 20 20 20 20 5 Class Distribution -------------------- 40% | Scavenger-Mutant 37% | Mutant 12% | Scavenger-Assassin 8% | Scavenger-Skirmisher Dominant Class ---------------- Mutant | -10/Materials Mutant | -10/Mines Mutant | -10/Exiles Mutant | -9/Mines Mutant | -8/Materials Scavenger-Mutant | -8/Storage Scavenger-Mutant | -8/Recycling Scavenger-Mutant | -8/Scraptown Scavenger-Mutant | -6/Factory Scavenger-Skirmisher | -6/Lower Caves Scavenger-Assassin | -6/Lower Caves Scavenger-Assassin | -6/Zion Scavenger-Mutant | -6/Deep Caves Resources | -11 -10 -10 -10 -9 -8 -8 -8 -8 -6 -6 -6 -6 -6 ----------- Run | Yrd Mat Min Exi Min Mat Sto Rec Scr Fac Low Low Zio Dee Matter Collected 5197 | 346 377 132 . 210 1213 889 120 364 325 449 276 30 466 Remotely . | . . . . . . . . . . . . . . Salvage Created 5985 | 181 480 190 . 103 1514 1252 110 357 386 274 437 . 701 Parts 323 | 12 29 11 . 12 81 69 8 23 22 20 18 . 18 Haulers Intercepted 11 | . 2 . . . 4 5 . . . . . . . Recyclers Shooed 7 | . . . . . 2 3 1 . 1 . . . . Parts Field Recycled . | . . . . . . . . . . . . . . Retrieved Matter . | . . . . . . . . . . . . . . Parts Self-Destructed 28 | . . . . . . . . . . 16 12 . . Prevented . | . . . . . . . . . . . . . . Kills | -11 -10 -10 -10 -9 -8 -8 -8 -8 -6 -6 -6 -6 -6 ------- Run | Yrd Mat Min Exi Min Mat Sto Rec Scr Fac Low Low Zio Dee Combat Hostiles Destroyed 155 | . 10 5 . 7 29 17 2 6 6 8 5 . 60 Melee 2 | . . . . . 1 . . . . . . . 1 Guns 59 | . 8 . . . 16 15 2 6 6 4 2 . . Cannons 18 | . . 5 . 1 2 . . . . . . . 10 AOE 72 | . . . . 6 10 2 . . . 4 3 . 47 Classes Destroyed 27 | 2 7 . . 2 4 . . 4 1 1 3 . 3 Worker 6 | . 1 2 . . 2 1 . . . . . . . Builder 7 | . . . . . 4 1 . . 2 . . . . Tunneler 5 | 4 . 1 . . . . . . . . . . . Hauler 11 | . 2 . . . 4 5 . . . . . . . Recycler 7 | 1 . . . 1 3 2 . . . . . . . Mechanic 1 | . 1 . . . . . . . . . . . . Operator 2 | . 1 . . . 1 . . . . . . . . Watcher 1 | . 1 . . . . . . . . . . . . Swarmer 18 | . 3 . . 4 4 . . . . 7 . . . Grunt 42 | . 7 5 . . 15 7 . . 5 . 3 . . Brawler 1 | . . . . . . . . . . . 1 . . Sentry 19 | . . . . . 7 10 2 . . . . . . Demolisher 2 | . . . . 2 . . . . . . . . . Specialist 2 | . . . . . 2 . . . . . . . . Hunter 1 | . . . . . 1 . . . . . . . . Programmer 2 | . . . . . . . . . 1 . 1 . . Behemoth 1 | . . . . . . . . . . 1 . . . Enhanced Grunt 2 | . . . . . . . . . . . . . 2 Federalist 1 | . . . . . . . . 1 . . . . . Guru 2 | . . . . . . . . 2 . . . . . Scientist 2 | . . . . . . . . 2 . . . . . Scrapper 3 | . . . . . . . . 3 . . . . . Z-Light 2 | . . . . . . . . . . . . . 2 Decomposer 1 | . . . . . . . . . . 1 . . . Packrat 1 | . . . . . . . . . . 1 . . . Samaritan 3 | . . . . . . . . . . . 3 . . Tinkerer 1 | . . . . . . . . . . . 1 . . Assembler 1 | . . . . . . . . . . . . . 1 Assembled 56 | . . . . 1 . . . . . . . . 55 Golem 3 | . . . . . . . . . . . . . 3 Best Kill Streak 38 | 2 4 3 . 3 6 6 1 3 3 4 4 . 38 Combat Bots Only 38 | . 3 3 . 3 4 4 1 3 3 4 4 . 38 Max Kills in Single Turn 31 | 1 1 1 . 3 5 2 1 1 1 3 2 . 31 Gunslinging 1 | . . . . . . 1 . . . . . . . Exploded 29 | . . . . 3 4 1 . . . 3 2 . 29 Melee 1 | . . . . . 1 . . . . . . . 1 Uniques/NPCs Destroyed 1 | . . . . . . . . . . . . . 1 Z-Imprinter (-6/Deep Caves) Combat | -11 -10 -10 -10 -9 -8 -8 -8 -8 -6 -6 -6 -6 -6 -------- Run | Yrd Mat Min Exi Min Mat Sto Rec Scr Fac Low Low Zio Dee Hostile Shots Fired 784 | . 47 12 . 44 183 77 6 59 39 48 29 . 240 Missed 221 | . 12 1 . 10 52 19 . 15 8 14 9 . 81 Hits 563 | . 35 11 . 34 131 58 6 44 31 34 20 . 159 Melee 14 | . . . . . . . . . . . . . 14 Projectile 549 | . 35 11 . 34 131 58 6 44 31 34 20 . 145 AOE 11 | . . . . 11 . . . . . . . . . Critical Strikes 18 | . . . . 1 2 3 1 2 2 . 1 . 6 Actively Blocked 2 | . . . . . . . . . . . . . 2 Part Disruptions 4 | . . . . . . . . . . . . . 4 Actively Blocked 1 | . . . . . . . . . . . . . 1 Damage Taken 9783 | . 419 167 . 730 2116 926 81 506 572 768 280 . 3218 Core 1419 | . 110 . . 108 204 97 14 12 38 56 57 . 723 Absorbed by Shields 525 | . . . . . . . . . . 38 20 . 467 Redirected to Shielding 444 | . . . . . 130 . . . . . . . 314 Ignored by Resistances 7 | . . . . . . . . . . 7 . . . Regen/Repaired (Parts) 156 | . 156 . . . . . . . . . . . . Core Remaining (%) 50 | 100 . . . 12 . . . 40 . . . . . Volleys Fired 436 | 16 38 14 . 14 133 59 6 22 35 27 13 . 59 Largest 2 | 2 2 2 . 2 2 2 2 2 2 2 2 . 2 Hottest 90 | 40 60 60 . 60 70 51 50 50 53 53 50 . 90 Shots Fired 757 | 32 76 28 . 22 224 115 13 44 58 52 24 . 69 Gun 571 | 32 68 . . . 169 112 13 44 58 50 22 . 3 Cannon 137 | . 8 28 . 17 43 . . . . . . . 41 Launcher 40 | . . . . 5 12 3 . . . 2 2 . 16 Special 9 | . . . . . . . . . . . . . 9 Kinetic 690 | 32 76 28 . 17 212 112 13 44 58 50 22 . 26 Thermal 5 | . . . . . . . . . . . . . 5 Explosive 49 | . . . . 5 12 3 . . . 2 2 . 25 Electromagnetic 13 | . . . . . . . . . . . . . 13 Robot Hit Streak 21 | 5 6 11 . 4 13 16 12 7 21 14 6 . 10 Robot Miss Streak 4 | 2 2 1 . 1 4 3 2 3 1 3 2 . 2 Penetration Max 1 | . . . . . . 1 . . 1 . . . . Secondary Targets 6 | . . . . . . 3 . 2 . 1 . . . Max Gunslinging Chain 1 | . . . . . . 1 . 1 . 1 . . . Shots Hit Robots 514 | 21 56 21 . 11 126 93 9 31 38 38 18 . 52 Core Hits 353 | 5 21 11 . 11 82 49 4 15 19 20 11 . 105 Critical Kills 1 | . . . . . 1 . . . . . . . . Critical Parts Destroyed 5 | . 2 . . . . . 1 . . 1 1 . . Critical Strikes 8 | . 2 . . . 2 . 1 . . 1 1 . 1 Destroy 4 | . . . . . 1 . 1 . . 1 1 . . Blast 2 | . . . . . 1 . . . . . . . 1 Smash 2 | . 2 . . . . . . . . . . . . Melee Attacks 75 | . 12 . . . 12 7 . 1 20 1 10 2 10 Impact 12 | . 12 . . . . . . . . . . . . Slashing 63 | . . . . . 12 7 . 1 20 1 10 2 10 Piercing . | . . . . . . . . . . . . . . Sneak Attacks 15 | . . . . . 3 . . 1 3 . 4 . 4 Combat Hostiles . | . . . . . . . . . . . . . . Follow-up Attacks 1 | . 1 . . . . . . . . . . . . Damage Inflicted 19893 | 258 952 443 . 408 3826 2116 182 597 950 1098 1038 . 8025 Guns 6745 | 258 576 . . . 1836 1781 165 499 690 693 247 . . Cannons 1886 | . 87 400 . 165 191 . . . . . . . 1043 Explosions 8711 | . . . . 243 1486 265 . . . 405 269 . 6043 Melee 2024 | . 279 . . . 250 . . 98 233 . 522 . 642 Ramming 230 | . 10 43 . . 63 70 17 . 27 . . . . Kinetic 8226 | 258 663 400 . 165 2027 1781 165 499 690 693 247 . 638 Thermal 230 | . . . . . . . . . . . . . 230 Explosive 8507 | . . . . 243 1360 265 . . . 405 269 . 5965 Electromagnetic 379 | . . . . . 126 . . . . . . . 253 Impact 279 | . 279 . . . . . . . . . . . . Slashing 2042 | . . . . . 250 . . 98 233 . 522 . 939 Piercing . | . . . . . . . . . . . . . . Highest Corruption 3 | . . . . . . 2 2 2 1 1 2 . 3 Average Corruption 1 | . . . . . . 2 2 2 1 1 1 . 3 Corruption Purged 2 | . . . . . . . . . . . 2 . . Corruption Blocked . | . . . . . . . . . . . . . . Effects 43 | . . . . . . 10 14 5 2 7 1 . 4 Message Errors 12 | . . . . . . 2 3 1 1 3 . . 2 Matter Fused 10 | . . . . . . 2 3 1 1 2 1 . . Heat Flow Errors 4 | . . . . . . 1 . 3 . . . . . Energy Discharges 5 | . . . . . . . 4 . . . . . 1 Data Loss (minor) 9 | . . . . . . 4 3 . . 1 . . 1 Data Loss (major) 1 | . . . . . . 1 . . . . . . . Misfires 1 | . . . . . . . 1 . . . . . . Alerts 1 | . . . . . . . . . . 1 . . . Overload Shots . | . . . . . . . . . . . . . . Overflow Damage 852 | . 83 . . . 63 . . . 35 12 324 . 335 Projectiles 47 | . . . . . 16 . . . . . . . 31 Explosions 185 | . . . . . . . . . . 12 . . 173 Melee 620 | . 83 . . . 47 . . . 35 . 324 . 131 Knockbacks 19 | . 6 5 . 4 1 . . . 1 . . . 2 Impact 6 | . 5 . . . . . . . 1 . . . . Kinetic 11 | . . 4 . 4 1 . . . . . . . 2 Secondary 2 | . 1 1 . . . . . . . . . . . Self-Inflicted Damage 168 | . . . . 73 22 14 . . . . . . 59 Shots 7 | . . . . 2 1 1 . . . . . . 3 Rammed 27 | . 3 5 . 1 10 4 3 . 1 . . . . Targets Rammed 29 | . 3 6 . 1 11 4 3 . 1 . . . . Kicked . | . . . . . . . . . . . . . . Crushed 2 | . . 1 . . 1 . . . . . . . . Highest Temperature 268 | . 2 39 . 15 57 97 60 268 61 . . . 101 Average Temperature 37 | . 2 21 . 12 18 30 30 76 22 . . . 34 Received Heat Transfer 2867 | . 219 96 . 20 756 414 45 254 279 84 57 . 643 Siege Activations . | . . . . . . . . . . . . . . Martial Activations . | . . . . . . . . . . . . . . Shielding Activations . | . . . . . . . . . . . . . . Robots Disrupted . | . . . . . . . . . . . . . . Combat Hostiles . | . . . . . . . . . . . . . . Robots Corrupted 4 | . 2 . . . . . . . . . . . 2 Combat Hostiles 4 | . 2 . . . . . . . . . . . 2 Parts Fried 2 | . 1 . . . 1 . . . . . . . . Impact Corruptions 4 | . 4 . . . . . . . . . . . . Robots Melted . | . . . . . . . . . . . . . . Combat Hostiles . | . . . . . . . . . . . . . . Parts Melted 2 | . . . . . . . . 2 . . . . . Heat Transferred 50 | . . . . . . . . . . . . . 50 Parts Sabotaged . | . . . . . . . . . . . . . . Parts Stolen . | . . . . . . . . . . . . . . Parts Stripped . | . . . . . . . . . . . . . . Power Chain Reactions 1 | . . . . . . . . . . . . . 1 Alert | -11 -10 -10 -10 -9 -8 -8 -8 -8 -6 -6 -6 -6 -6 ------- Run | Yrd Mat Min Exi Min Mat Sto Rec Scr Fac Low Low Zio Dee Maximum Alert Level 1 | . . . . . 1 1 . . 1 . . . . Low Security (%) 92 | 100 100 100 . 100 75 85 100 . 89 . . . . Level 1 7 | . . . . . 24 14 . . 10 . . . . Level 2 . | . . . . . . . . . . . . . . Level 3 . | . . . . . . . . . . . . . . Level 4 . | . . . . . . . . . . . . . . Level 5 . | . . . . . . . . . . . . . . High Security . | . . . . . . . . . . . . . . Max Security . | . . . . . . . . . . . . . . Peak Influence 359 | 5 112 60 . 83 359 283 107 . 214 . . . . Initial 73 | . 3 . . . . 73 57 . . . . . . Average 58 | 1 36 12 . 12 124 146 23 . 76 . . . . Influence Increases 3626 | 25 349 252 . 228 1139 661 263 . 384 190 135 . . Destroy 0b10 Robot/C 1880 | . 200 180 . 160 580 340 40 . 120 160 100 . . Destroy 0b10 Robot/NC 200 | 25 30 15 . 5 70 45 . . 10 . . . . Destroy Leader 464 | . 46 40 . 30 148 130 . . 20 30 20 . . Allied During Kill 24 | . . 17 . 7 . . . . . . . . . Trap Triggered on 0b10 50 | . . . . . 50 . . . . . . . . Successful Hack 129 | . 42 . . . 45 12 13 . 17 . . . . Select Force Hacks 210 | . . . . . . . 210 . . . . . . Disable Machine 75 | . . . . . 30 45 . . . . . . . Anti-Garrison Action 200 | . . . . . . . . . 200 . . . . Destroy Structure 154 | . 1 . . 26 81 29 . . 17 . . . . Partial Spotted 15 | . 15 . . . . . . . . . . . . Lose Combat Pursuer 225 | . 15 . . . 135 60 . . . . 15 . . Influence Decreases 3626 | 20 354 252 . 228 964 688 411 . 207 363 139 . . Entered New Map 264 | . 2 . . . . 102 91 . . 67 2 . . Time Decay 2670 | 20 352 232 . 176 574 416 320 . 207 246 127 . . Lost Part 192 | . . . . 22 90 20 . . . 50 10 . . Lost Ally 50 | . . 20 . 30 . . . . . . . . . Purge Threat 450 | . . . . . 300 150 . . . . . . . Squads Dispatched 10 | . 1 . . . 3 2 . . 4 . . . . Investigation 3 | . . . . . . . . . 3 . . . . Extermination 1 | . . . . . . . . . 1 . . . . Reinforcement 6 | . 1 . . . 3 2 . . . . . . . Assault . | . . . . . . . . . . . . . . Garrison . | . . . . . . . . . . . . . . Intercept . | . . . . . . . . . . . . . . Searches Triggered . | . . . . . . . . . . . . . . Construction Impeded . | . . . . . . . . . . . . . . Haulers Reinforced . | . . . . . . . . . . . . . . Active Scanning Responses . | . . . . . . . . . . . . . . Cargo Convoy Interrupts . | . . . . . . . . . . . . . . Stealth | -11 -10 -10 -10 -9 -8 -8 -8 -8 -6 -6 -6 -6 -6 --------- Run | Yrd Mat Min Exi Min Mat Sto Rec Scr Fac Low Low Zio Dee Distress Signals 8 | . 1 . . . 4 3 . . . . . . . Communications Jammed . | . . . . . . . . . . . . . . Distress Signals . | . . . . . . . . . . . . . . Times Spotted 235 | . 18 8 . 10 57 23 2 15 10 8 4 . 80 Peak Tracking Total 37 | . 3 3 . 5 6 5 1 4 3 4 3 . 37 Tactical Retreats 15 | . 1 . . . 9 2 . . . . 1 . 2 Traps | -11 -10 -10 -10 -9 -8 -8 -8 -8 -6 -6 -6 -6 -6 ------- Run | Yrd Mat Min Exi Min Mat Sto Rec Scr Fac Low Low Zio Dee Traps Triggered 5 | . . . . . 3 1 . . 1 . . . . Indirectly . | . . . . . . . . . . . . . . Trap Hack Attempts . | . . . . . . . . . . . . . . Triggered . | . . . . . . . . . . . . . . Disarmed . | . . . . . . . . . . . . . . Reprogrammed . | . . . . . . . . . . . . . . Reused 5 | . . . . . 5 . . . . . . . . Traps Extracted . | . . . . . . . . . . . . . . Installed 5 | . . . . . 5 . . . . . . . . Triggered 5 | . . . . . 5 . . . . . . . . Most Traps Carried 5 | . . . . 5 5 . . . . . . . . Machines | -11 -10 -10 -10 -9 -8 -8 -8 -8 -6 -6 -6 -6 -6 ---------- Run | Yrd Mat Min Exi Min Mat Sto Rec Scr Fac Low Low Zio Dee Machines Disabled 6 | . . . . . 2 3 . 1 . . . . . Max in Single Turn 2 | . . . . . 2 1 . 1 . . . . . Garrison Access 2 | . . . . . . . . . 2 . . . . Machines Repaired . | . . . . . . . . . . . . . . Machines Dismantled . | . . . . . . . . . . . . . . Machines Sabotaged . | . . . . . . . . . . . . . . Overloaded Fab Kills . | . . . . . . . . . . . . . . Hacking | -11 -10 -10 -10 -9 -8 -8 -8 -8 -6 -6 -6 -6 -6 --------- Run | Yrd Mat Min Exi Min Mat Sto Rec Scr Fac Low Low Zio Dee Machines Accessed 44 | . 8 . 1 1 6 6 12 2 7 . . 1 . Terminals 25 | . 7 . . . 5 6 5 . 2 . . . . Fabricators 1 | . . . . . . . . . 1 . . . . Repair Stations 1 | . 1 . . . . . . . . . . . . Recycling Units 8 | . . . . . . . 7 . 1 . . . . Scanalyzers . | . . . . . . . . . . . . . . Garrison Access 4 | . . . . . 1 . . . 3 . . . . Total Hacks 125 | . 25 . 1 1 27 14 23 18 14 . . 2 . Successful 82 | . 19 . 1 1 12 7 16 18 6 . . 2 . Failed 43 | . 6 . . . 15 7 7 . 8 . . . . Catastrophic 4 | . 1 . . . . . 1 . 2 . . . . Database Lockouts . | . . . . . . . . . . . . . . Manual 81 | . 19 . . . 22 8 19 . 8 . . 5 . Terminals 80 | . 21 . . . 25 14 16 . 4 . . . . Fabricators 2 | . . . . . . . . . 2 . . . . Repair Stations 4 | . 4 . . . . . . . . . . . . Recycling Units 8 | . . . . . . . 7 . 1 . . . . Scanalyzers . | . . . . . . . . . . . . . . Garrison Access 9 | . . . . . 2 . . . 7 . . . . Terminal Hacks 42 | . 5 . 1 1 6 7 2 18 . . . 2 . Record 18 | . . . 1 . . . . 17 . . . . . Part Schematic 2 | . . . . . . . . . . . . 2 . Robot Analysis 5 | . 2 . . . 2 . 1 . . . . . . Prototype ID Bank 1 | . . . . . . . 1 . . . . . . Open Door 5 | . . . . 1 . 3 . 1 . . . . . Branch Access Points 1 | . . . . . 1 . . . . . . . . Terminal Index 2 | . 1 . . . 1 . . . . . . . . Unreport Threat 3 | . . . . . 2 1 . . . . . . . Locate Traps 4 | . 2 . . . . 2 . . . . . . . Zone Layout 1 | . . . . . . 1 . . . . . . . Fabricator Hacks 1 | . . . . . . . . . 1 . . . . Network Status 1 | . . . . . . . . . 1 . . . . Repair Station Hacks 4 | . 4 . . . . . . . . . . . . Scan Component 2 | . 2 . . . . . . . . . . . . Repair 2 | . 2 . . . . . . . . . . . . Recycling Unit Hacks . | . . . . . . . . . . . . . . Scanalyzer . | . . . . . . . . . . . . . . Garrison Access Hacks 1 | . . . . . . . . . 1 . . . . Seal Access 1 | . . . . . . . . . 1 . . . . Unauthorized Hacks 34 | . 10 . . . 6 . 14 . 4 . . . . Terminals 25 | . 10 . . . 6 . 7 . 2 . . . . Assimilate 2 | . . . . . 1 . . . 1 . . . . Botnet 10 | . 4 . . . 3 . 2 . 1 . . . . Operators 2 | . 1 . . . 1 . . . . . . . . Skim 11 | . 5 . . . 1 . 5 . . . . . . Fabricators . | . . . . . . . . . . . . . . Repair Stations . | . . . . . . . . . . . . . . Recycling Units 8 | . . . . . . . 7 . 1 . . . . Tunnel 7 | . . . . . . . 7 . . . . . . Fedlink 1 | . . . . . . . . . 1 . . . . Scanalyzers . | . . . . . . . . . . . . . . Garrison Access 1 | . . . . . . . . . 1 . . . . Jam 1 | . . . . . . . . . 1 . . . . Data Cores Recovered 1 | . . . . . 1 . . . . . . . . Used 1 | . . . . . 1 . . . . . . . . Hacking Detections 27 | . 7 . . . 6 5 5 . 4 . . . . Full Trace Events . | . . . . . . . . . . . . . . Feedback Events . | . . . . . . . . . . . . . . Feedback Blocked . | . . . . . . . . . . . . . . Robot Schematics Acquired 4 | . . . . . . . . . . . . 4 . Robots Built . | . . . . . . . . . . . . . . Authchips . | . . . . . . . . . . . . . . Time . | . . . . . . . . . . . . . . Total Robot Build Rating . | . . . . . . . . . . . . . . Part Schematics Acquired 17 | . . . . . . . . . . . . 17 . Parts Built . | . . . . . . . . . . . . . . Authchips . | . . . . . . . . . . . . . . Time . | . . . . . . . . . . . . . . Total Part Build Rating . | . . . . . . . . . . . . . . Parts Repaired 2 | . 2 . . . . . . . . . . . . Time 52 | . 52 . . . . . . . . . . . . Parts Recycled . | . . . . . . . . . . . . . . Recycled Matter . | . . . . . . . . . . . . . . Retrieved Matter . | . . . . . . . . . . . . . . Retrieved Components . | . . . . . . . . . . . . . . Parts Scanalyzed . | . . . . . . . . . . . . . . Part Schematics Acquired . | . . . . . . . . . . . . . . Parts Damaged . | . . . . . . . . . . . . . . Bothacking | -11 -10 -10 -10 -9 -8 -8 -8 -8 -6 -6 -6 -6 -6 ------------ Run | Yrd Mat Min Exi Min Mat Sto Rec Scr Fac Low Low Zio Dee Used RIF Installer . | . . . . . . . . . . . . . . Robots Hacked . | . . . . . . . . . . . . . . Non-combat . | . . . . . . . . . . . . . . Combat . | . . . . . . . . . . . . . . Robot Hacks Applied . | . . . . . . . . . . . . . . Relay Couplers Released . | . . . . . . . . . . . . . . Fabnet Peak Effective % . | . . . . . . . . . . . . . . Robots Rewired . | . . . . . . . . . . . . . . Allies Hacked . | . . . . . . . . . . . . . . Hacks Repelled . | . . . . . . . . . . . . . . Allies | -11 -10 -10 -10 -9 -8 -8 -8 -8 -6 -6 -6 -6 -6 -------- Run | Yrd Mat Min Exi Min Mat Sto Rec Scr Fac Low Low Zio Dee Total Allies 9 | . . 4 . 2 . . . . 1 . . 2 . Largest Group 4 | . . 3 3 4 . . . . 1 1 1 2 2 Highest-Rated Group 192 | . . 63 63 84 . . . . 10 10 10 192 192 Highest-Rated Ally 96 | . . 31 31 31 . . . . 10 10 10 96 96 Total Orders . | . . . . . . . . . . . . . . Ally Attacks 60 | . . 20 . 13 . . . . . . . . 27 Total Damage 1095 | . . 252 . 148 . . . . . . . . 695 Kills 14 | . . 4 . 3 . . . . . . . . 7 Allies Corrupted . | . . . . . . . . . . . . . . Allies Melted 4 | . . . . . . . . 4 . . . . . Intel | -11 -10 -10 -10 -9 -8 -8 -8 -8 -6 -6 -6 -6 -6 ------- Run | Yrd Mat Min Exi Min Mat Sto Rec Scr Fac Low Low Zio Dee Active Infowar (turns) 10095 | 37 660 1053 310 2311 1051 . . . 968 477 1293 1107 828 Optics 194 | . . . . . 31 . . . . . . . 163 Sensors 4506 | . . . . . . . . . 968 475 1293 1107 663 Structural 4412 | . . . . . . . . . 967 470 1203 1107 665 Seismic 5391 | 37 660 1053 310 2311 1020 . . . . . . . . Robot Analysis Total 5 | . 2 . . . 2 . 1 . . . . . . Derelict Logs Recovered 9 | . . 2 . 2 . . . . . . 3 2 . Drone Launches . | . . . . . . . . . . . . . . Drone Recoveries . | . . . . . . . . . . . . . . Exploration | -11 -10 -10 -10 -9 -8 -8 -8 -8 -6 -6 -6 -6 -6 ------------- Run | Yrd Mat Min Exi Min Mat Sto Rec Scr Fac Low Low Zio Dee Turns Passed 18312 | 196 1158 1141 310 2311 1954 1012 1245 2659 970 856 1318 1107 2075 Spaces Moved 8813 | 86 539 652 155 679 964 460 593 1460 491 470 744 683 837 Core 23 | 3 . . . . . . . 2 . . . . 18 Treads 7198 | 83 539 652 155 679 627 460 593 1319 491 75 561 683 281 Legs 297 | . . . . . . . . . . . . . 297 Wheels 915 | . . . . . 337 . . . . 395 183 . . Hover 144 | . . . . . . . . . . . . . 144 Flight 236 | . . . . . . . . 139 . . . . 97 Fastest Speed 37 | 50 160 160 160 240 105 152 156 37 159 145 145 160 37 Average Speed 161 | 156 160 160 200 240 143 155 156 146 159 159 155 160 157 Slowest Speed 450 | 160 160 160 240 240 235 156 156 240 159 235 160 160 450 Overloaded Moves . | . . . . . . . . . . . . . . Propulsion Burnouts . | . . . . . . . . . . . . . . Robots Hopped . | . . . . . . . . . . . . . . Potential Cave-ins . | . . . . . . . . . . . . . . Cave-ins Triggered . | . . . . . . . . . . . . . . Exploration Rate (%) 68 | 5 93 99 53 85 79 74 88 82 15 60 82 84 64 Regions Visited 13 Branch Regions 10 Pre-discovered Areas 21 | . 3 1 1 . . . 10 4 . . 1 1 . Known Exits Taken 7 | . . . . . 1 . 1 1 1 1 1 1 . Unknown Exits Taken 6 | 1 1 1 1 1 . 1 . . . . . . . Scrap Searched 14 | . . 2 . 1 . . . 4 . 2 2 3 . Spaces Dug 108 | . . . . 23 31 4 . . 16 17 14 . 3 Terrain Destroyed 339 | . . . . 28 103 26 . . 17 23 18 . 124 Melee 32 | . . . . . 6 4 . . 16 1 4 . 1 Projectile 35 | . . . . . 27 . . . . . . . 8 AOE 271 | . . . . 28 70 22 . . . 22 14 . 115 Terrain Rammed . | . . . . . . . . . . . . . . Walls Destroyed . | . . . . . . . . . . . . . . Machines Disabled . | . . . . . . . . . . . . . . Actions | -11 -10 -10 -10 -9 -8 -8 -8 -8 -6 -6 -6 -6 -6 --------- Run | Yrd Mat Min Exi Min Mat Sto Rec Scr Fac Low Low Zio Dee Total 12066 | 112 741 718 155 1335 1282 658 904 1956 608 524 872 694 1507 Wait 2256 | . 124 41 . 623 50 66 299 407 26 5 94 1 520 Move 8800 | 85 538 651 154 678 963 459 592 1459 490 469 743 682 837 Hop . | . . . . . . . . . . . . . . Pick Up 101 | 4 6 3 . 8 18 11 . 27 8 3 1 3 9 Fast Attach 69 | 7 4 . . . 14 6 . 8 3 1 1 . 25 Attach 46 | . 3 1 . 6 10 3 . 6 6 3 1 . 7 Detach 23 | . 6 . . . 4 2 1 2 3 . 1 . 4 Swap 127 | . 6 1 1 5 39 18 2 4 9 15 8 3 16 Drop 101 | . 3 1 . . 23 23 1 20 7 . . 3 20 Fire 436 | 16 38 14 . 14 133 59 6 22 35 27 13 . 59 Melee 73 | . 10 . . . 12 7 . 1 20 1 10 2 10 Ram . | . . . . . . . . . . . . . . Kick . | . . . . . . . . . . . . . . Crush 29 | . 3 6 . 1 11 4 3 . 1 . . . . Escape Stasis . | . . . . . . . . . . . . . . Rewire . | . . . . . . . . . . . . . . Trap 5 | . . . . . 5 . . . . . . . . Miscellaneous . | . . . . . . . . . . . . . . Route ------- -11/Scrapyard -10/Materials (discovered 6 exits: *Mat x3 / [*Min x2] / Sub) -10/Mines (discovered 4 exits: *Mat x2 / *Exi / *Sub) -10/Exiles -9/Mines -8/Materials (discovered 4 exits: *Fac x3 / *Sto) -8/Storage (discovered 2 exits: *Fac / *Rec) -8/Recycling (discovered 2 exits: *Fac / *Scr) -8/Scraptown (discovered 2 exits: *Fac x2) -6/Factory (discovered 5 exits: Fac x3 / *Low x2) -6/Lower Caves -6/Lower Caves (discovered 2 exits: *Fac / *Zio) -6/Zion (discovered 2 exits: *Dee / *Pro) -6/Deep Caves (discovered 1 exit: Pro) History --------- Turn | Location | Event 2 | -11/Scrapyard | Met Revision 17 22 | -11/Scrapyard | Discovered new exit (range 14) 197 | -11/Scrapyard | Entered Materials 314 | -10/Materials | Build established: Mutant 325 | -10/Materials | Discovered new exit (range 4) 691 | -10/Materials | Discovered new exit (range 14) 750 | -10/Materials | Discovered new exit (range 15) 806 | -10/Materials | Repaired Lgt. Treads 834 | -10/Materials | Repaired Lgt. Treads 935 | -10/Materials | Discovered new exit (range 11) 1178 | -10/Materials | Discovered new exit (range 11) 1244 | -10/Materials | Learned Storage terminal intel 1276 | -10/Materials | Learned location of Recycling (-8) 1299 | -10/Materials | Learned location of 1 exit from Recycling 1313 | -10/Materials | Learned location of Subcaves (-10) 1314 | -10/Materials | Learned location of 2 exits from Subcaves 1316 | -10/Materials | Identified exit to Subcaves 1327 | -10/Materials | Learned location of 2 exits from Mines 1355 | -10/Materials | Entered Mines 1356 | -10/Mines | Identified exit to Materials 1485 | -10/Mines | Discovered exit to Subcaves (range 8) 1522 | -10/Mines | Learned location of Storage (-8) 1600 | -10/Mines | Learned 2 Materials zone layouts 1639 | -10/Mines | Assisted by bots powering up and referring to "LRC-V3" 1690 | -10/Mines | Learned location of 1 exit from Materials 1768 | -10/Mines | Deemed a non-threat by the Exiles lab entrance 2104 | -10/Mines | Received a Rocket Launcher from a helpful Derelict 2323 | -10/Mines | Escorted by a lone wolf Derelict 2479 | -10/Mines | Discovered new exit (range 5) 2496 | -10/Mines | Entered Exiles 2496 | -10/Exiles | Accompanied by 3 allies 2535 | -10/Exiles | Met 8R-AWN 2560 | -10/Exiles | Met EX-HEX 2662 | -10/Exiles | Met EX-DEC 2708 | -10/Exiles | Learned location of Zion (-6) 2787 | -10/Exiles | Discovered new exit (range 10) 2806 | -10/Exiles | Entered Mines 2806 | -9/Mines | Accompanied by 2 allies 3074 | -9/Mines | Assembled infested the area 3367 | -9/Mines | Core integrity fell below 50% 3380 | -9/Mines | Core integrity fell below 20% 3409 | -9/Mines | Lost 6 parts (1p2n3w) 3545 | -9/Mines | A weapon hastily lodged in a ceiling crevice suddenly fell to the ground 3908 | -9/Mines | Found a hidden stash of uninstalled traps 4407 | -9/Mines | Learned Materials stockpile data 4457 | -9/Mines | Learned Materials stockpile data 4484 | -9/Mines | Discovered new exit (range 7) 4497 | -9/Mines | Met a Derelict who couldn't figure out how to use a Trap Extractor 5117 | -9/Mines | Entered Materials 5117 | -8/Materials | Evolved 4 slots: Propulsion x2, Utility x2 5118 | -8/Materials | Identified exit to Factory 5685 | -8/Materials | Build established: Scavenger-Mutant 5814 | -8/Materials | Lost 3 parts (2n1w) 6058 | -8/Materials | Discovered exit to Factory (range 15) 6386 | -8/Materials | Build established: Mutant 6880 | -8/Materials | Build established: Scavenger-Mutant 6992 | -8/Materials | Identified exit to Storage 7071 | -8/Materials | Entered Storage 7072 | -8/Storage | Loaded intel: 13 terminal locations 7592 | -8/Storage | Core integrity fell below 50% 7653 | -8/Storage | Discovered exit to Factory (range 14) 7765 | -8/Storage | Discovered new exit (range 17) 8078 | -8/Storage | Used back door to open Recycling access 8083 | -8/Storage | Entered Recycling 8084 | -8/Recycling | Identified exit to Scraptown 8747 | -8/Recycling | Discovered new exit (range 16) 8961 | -8/Recycling | Identified exit to Factory 9014 | -8/Recycling | Learned Factory scanalyzer intel 9059 | -8/Recycling | Learned 2 Storage zone layouts 9093 | -8/Recycling | Learned Storage terminal intel 9134 | -8/Recycling | Learned location of 1 exit from Extension 9138 | -8/Recycling | Learned location of 2 exits from Lower Caves 9290 | -8/Recycling | Scanned before Scraplab entrance 9312 | -8/Recycling | Entered Scraplab 9328 | -8/Recycling | Entered Scraptown 9422 | -8/Scraptown | Visited UFD Registry 9422 | -8/Scraptown | Registered with UFD as "Fiberroller" 9455 | -8/Scraptown | Visited A0-MCA Data Center 9555 | -8/Scraptown | Visited Analyses Database 9614 | -8/Scraptown | Visited Cartography Club 9704 | -8/Scraptown | Discovered exit to Factory (range 5) 9714 | -8/Scraptown | System corruption cleaned by C-Scrubber 9850 | -8/Scraptown | Given a B+ rating by A0-MCA 9855 | -8/Scraptown | Found A0-MCA's Component Scanner 10330 | -8/Scraptown | Discovered exit to Factory (range 11) 10492 | -8/Scraptown | Visited Symbiants 10515 | -8/Scraptown | Visited Spacefarers 10552 | -8/Scraptown | Visited Comm Corps 10634 | -8/Scraptown | Visited Awakened 10825 | -8/Scraptown | Visited Infowarlord's Domain 10955 | -8/Scraptown | Visited LU-1G1's Boring Crew 10996 | -8/Scraptown | Found Exp. Sensor Array 11039 | -8/Scraptown | Visited Sword Containment 11180 | -8/Scraptown | Found Surveybot 17 Chip 11199 | -8/Scraptown | Found Deep Structural Scanner 11203 | -8/Scraptown | Learned location of Cetus (-4) 11203 | -8/Scraptown | Learned 8 Materials zone layouts 11203 | -8/Scraptown | Learned location of Armory (-4) 11203 | -8/Scraptown | Learned 12 Materials zone layouts 11203 | -8/Scraptown | Learned 12 Factory zone layouts 11203 | -8/Scraptown | Learned 4 Mines zone layouts 11203 | -8/Scraptown | Learned 24 Proximity Caves zone layouts 11203 | -8/Scraptown | Learned 4 Hub_04(d) zone layouts 11203 | -8/Scraptown | Learned Research emergency access door positions 11203 | -8/Scraptown | Learned location of 3 exits from Factory 11203 | -8/Scraptown | Learned location of 1 exit from Lower Caves 11203 | -8/Scraptown | Learned location of 2 exits from Proximity Caves 11436 | -8/Scraptown | Met Optimus 11436 | -8/Scraptown | Accepted into 0bPrime 11836 | -8/Scraptown | Civil war broke out across Scraptown 11896 | -8/Scraptown | Lost 6 allies 11987 | -8/Scraptown | Entered Factory 11987 | -6/Factory | Evolved 4 slots: Propulsion x1, Utility x3 11988 | -6/Factory | Identified exit to Lower Caves 11989 | -6/Factory | Identified exit to Factory 11991 | -6/Factory | Loaded intel: 4 scanalyzer locations 11991 | -6/Factory | Lost 7 allies 12333 | -6/Factory | Loaded intel: 8 recycling unit locations 12957 | -6/Factory | Entered Lower Caves 12957 | -6/Lower Caves | Accompanied by 1 ally 12958 | -6/Lower Caves | Identified exit to Lower Caves 12975 | -6/Lower Caves | Spotted B-75 Beast 13016 | -6/Lower Caves | Destroyed B-75 Beast 13043 | -6/Lower Caves | Lost 5 parts (1p3n1u) 13813 | -6/Lower Caves | Entered another Lower Caves area 13813 | -6/Lower Caves | Accompanied by 1 ally 13814 | -6/Lower Caves | Identified exit to Zion 13887 | -6/Lower Caves | Learned location of 1 exit from Factory 14113 | -6/Lower Caves | Spotted B-75 Beast 14262 | -6/Lower Caves | Build established: Scavenger-Assassin 14709 | -6/Lower Caves | Learned Factory terminal intel 14878 | -6/Lower Caves | Encountered a Warlord checkpoint 15131 | -6/Lower Caves | Entered Zion 15132 | -6/Zion | Identified exit to Proximity Caves 15250 | -6/Zion | Found Prototype Special Weapon 15251 | -6/Zion | Identified RU-N14's Throwing Claymores 15255 | -6/Zion | Found RU-N14's Throwing Claymores 15258 | -6/Zion | Found RU-N14's Throwing Claymores 15738 | -6/Zion | Turned away by Imprinter 15793 | -6/Zion | Given A8's code to call for help 15918 | -6/Zion | Given the Hacking Drone Bay 15947 | -6/Zion | Acquired unknown access codes intercepted by a Zionite 16161 | -6/Zion | Opened final containment barrier to the Deep Caves 16174 | -6/Zion | Discovered new exit (range 10) 16185 | -6/Zion | Saw the warning signs outside the Deep Caves entrance 16189 | -6/Zion | Identified exit to Deep Caves 16219 | -6/Zion | Enhanced Grunt warped into view, answering call for help 16221 | -6/Zion | Enhanced Grunt warped into view, answering call for help 16238 | -6/Zion | Entered Deep Caves 16238 | -6/Deep Caves | Accompanied by 2 allies 16239 | -6/Deep Caves | Identified exit to Proximity Caves 16402 | -6/Deep Caves | Found Surveybot 24 Chip 16405 | -6/Deep Caves | Found Surveybot 24 Scanner 16479 | -6/Deep Caves | Attacked by Z-Imprinter 16483 | -6/Deep Caves | Allies destroyed Z-Imprinter 16643 | -6/Deep Caves | Z-Facility disabled 16899 | -6/Deep Caves | Found Prototype Protection 16899 | -6/Deep Caves | Identified Zio. Weapon Casing 17001 | -6/Deep Caves | Found Prototype Protection 17001 | -6/Deep Caves | Identified Zio. Heavy Carapace 17196 | -6/Deep Caves | Build established: Scavenger-Mutant 17392 | -6/Deep Caves | Spotted AG-05829 17425 | -6/Deep Caves | Destroyed AG-05829 17492 | -6/Deep Caves | Spotted AG-90912 17540 | -6/Deep Caves | Destroyed AG-90912 17560 | -6/Deep Caves | Found GOLEM Unit 17570 | -6/Deep Caves | Lost 3 parts (1p2u) 17790 | -6/Deep Caves | Build established: Mutant 18013 | -6/Deep Caves | Triggered Deep Caves wall 18041 | -6/Deep Caves | Spotted AS-26993 18043 | -6/Deep Caves | Spotted AS-91493 18053 | -6/Deep Caves | Core integrity fell below 50% 18061 | -6/Deep Caves | Destroyed 38 combat bots 18075 | -6/Deep Caves | Released all parts (10) 18079 | -6/Deep Caves | Core integrity fell below 20% 18097 | -6/Deep Caves | Lost 4 parts (2p2u) 18171 | -6/Deep Caves | Found Zio. Weapon Casing 18210 | -6/Deep Caves | Destroyed AS-26993 18266 | -6/Deep Caves | Destroyed 17 combat bots 18272 | -6/Deep Caves | Lost 10 parts (5n5u) 18313 | -6/Deep Caves | Destroyed by as-38594 with Assembled P-sword Last Messages --------------- 18238_ The unstable cave ceiling collapses. 18239_ Slug penetrates Earth. 18241_ Penetrated by Slug. 18241_ Zio. Weapon Casing destroyed. 18243_ The unstable cave ceiling collapses. 18243_ Slug penetrates Wall. 18245_ LR 18256_ Acquired 6 matter. 18263_ System corrupted: FCS attempts to trigger Missile Launcher. 18263_ The unstable cave ceiling collapses. 18290_ System corrupted: Energy discharge (-40). 18305_ The unstable cave ceiling collapses. 18307_ Slug penetrates Earth. 18307_ Penetrated by Slug. 18308_ as-09128 released from Mobile Assembly Unit. 18308_ The unstable cave ceiling collapses. Map ----- +----------------------------------------------------+ | ???" ???????????????????????????????? | | ???" ###?????????????????????????????? | | ???" #?????????????????????????????? | | ???" ##"##?????????? ???????????????? | | ???" ! "## #?????????# ??????????????? | | ??# #"# ####??????# ??????????????? | | " % ! " %% #??????# ??????????????? | | ####?????## ??????????????? | | % ###?????# ?????????????? | | * #????## ??????????????? | | ! ###???## ??????????????? | | = ##???## ???????????????? | | #???# ???????????????? | | == #???# #???????????????? | | " a = #????# #???????????????? | | ??# a aa #?????# ##??????????????? | | ??"" a aa #?????# ###????????????? | | ???" a ##????# ###??????????? | | ???" aa a! "####?# ###????????? | | ???" ! aaaa ! ### ### ##??????## | | ??"" [ /=] * aa # # ######## | | ??# !==] a a ## | | ??" *!! a a ### | | ??" [ ][ * aa # #?##### #### | | ??" [ aa #?????####??# | | ??""" [ a @ ## # #???????????? | | ??" a # #???????????? | | ??"" # ### #???????????? | | ??" l # #?# #???????????? | | ??"" # #???????????? | | ??" ;%; # # #???????????? | | ??" #### ;; "" ## ### ######???????????? | | ??""" ##???# ;; "########??###????????????????? | | ???? ?????#### "##????????????????????????????? | | ???#####????????####?????????????????????????????? | | | | | | | | | | | | | | | | | | | | | | | | | | | | | | | +----------------------------------------------------+ Best States ------------- Heat Dissipation 64 Energy Generation 27 Energy Capacity 1310 Matter Stores 300 Matter Capacity 300 Sight Range 22 Robot Scan Range 20 Terrain Scan Density 10 Armor Coverage 1600 Resistance: KI 20 Core Shielding 20 Propulsion Shielding 66 Weapon Shielding 100 Evasion (%) 62 Targeting Accuracy 5 Recoil Reduction 5 Offensive Hacking 10 Item Schematics ----------------- Fission Core | -6/Zion | Archive Disruptor Cannon | -6/Zion | Archive Stasis Canceller | -6/Zion | Archive Imp. Component Analysis Suite | -6/Zion | Archive Power Amplifier | -6/Zion | Archive Mni. Drone Bay | -6/Zion | Archive Thermic Laser | -6/Zion | Archive Adv. Hardlight Generator | -6/Zion | Archive Railgun | -6/Zion | Archive Arm. Leg | -6/Zion | Archive Imp. Thermal Shield | -6/Zion | Archive Imp. System Shield | -6/Zion | Archive Imp. Arc Projector | -6/Zion | Archive Imp. Weapon Cycler | -6/Zion | Archive Hvy. Plasma Cannon | -6/Zion | Archive Beamcaster | -6/Zion | Free Slug Cannon | -6/Zion | Free Robot Schematics ------------------ H-55 Commando | -6/Zion | Archive K-01 Serf | -6/Zion | Archive A-15 Conveyor | -6/Zion | Archive Y-72 Warden | -6/Zion | Archive Fabricated ------------ Nothing Repaired ---------- Lgt. Treads | 35% | -10/Materials Lgt. Treads | 52% | -10/Materials Alien Tech Used ----------------- None Achievements -------------- None Challenges ------------ None Game ------ Seed SwordDispersionAccelerator Manual? 0 Play Time 01:31:19 Cumulative 840.3 hours Start 2025.08.16 @ 14:11:11 End 2025.08.16 @ 18:32:45 Sessions 3 Manual Loads 0 Difficulty Rogue Special Mode None Game No. 787 Rogue 700 Adventurer 87 Explorer 0 Win Type - Total 55 Types 9/3/31/2/1/1/4/1/1/2 Lore% 97 Gallery% 93 Achievement% 82 Wizard Run 0 Options --------- Layout 0 ASCII 0 Keyboard 1 Movement Numpad Keybinds 0 Fullscreen 2 Font 18/SmallcapsGlow Map View 76x50 Zoom Use 0% Tactical HUD 1 Map Filters NONE Filters NONE Steam 1 RUN: 749e67f5-6cdf-4887-989f-b38e73656b4f